Cogmind - Beta 11 @@@ ROGUE MODE // 2023.02.13 @ 15:34:12 Player: ZarZap Result: Destroyed by D-53 Grenadier with Mini Grenade Launcher Performance ------------- Evolutions (0) 0 Regions Visited (4) 800 Robots Destroyed (11) 55 Value Destroyed (149) 149 Prototype IDs (0) 0 Alien Tech Used (0) 0 Bonus (-12) -12 TOTAL SCORE: 992 Bonus ------- Friendly Fire -12 Cogmind --------- Core Integrity 0/250 Matter 295/300 Energy 250/250 System Corruption 0% Temperature Cool (30) Movement Rolling (115) Ox1 Location -9/Mines Parts ------- > --- POWER (1) -------- Ion Engine > --- PROPULSION (2) --- Compact Wheel > --- UTILITY (2) ------ Medium Storage Unit > --- WEAPON (2) ------- Medium Laser Light Assault Rifle > --- INVENTORY (10) --- Light Ion Engine Light Ion Engine Light Treads Light Treads Peak State ------------ > --- POWER ------------ Light Ion Engine > --- PROPULSION ------- Wheel Wheel > --- UTILITY ---------- Small Storage Unit > --- WEAPON ----------- Medium Laser Assault Rifle > --- INVENTORY -------- Light Ion Engine Light Treads Light Treads Medium Laser [Rating: 6] Favorites ----------- Power Ion Engine Engine Ion Engine Propulsion Wheel Wheel Wheel Utility Small Storage Unit Storage Small Storage Unit Weapon Medium Laser Energy Gun Medium Laser Ballistic Gun Light Assault Rifle Build | -11 -10 -10 -10 -9 ------- Run | Scr Mat Min Exi Min Slots Evolved . | . . . . . Power . | . . . . . Propulsion . | . . . . . Utility . | . . . . . Weapon . | . . . . . Parts Attached 11 | 6 . 4 1 . Power 2 | 1 . 1 . . Engine 2 | 1 . 1 . . Core . | . . . . . Reactor . | . . . . . Propulsion 3 | 2 . 1 . . Treads . | . . . . . Leg . | . . . . . Wheel 3 | 2 . 1 . . Hover . | . . . . . Flight . | . . . . . Utility 2 | 1 . . 1 . Device . | . . . . . Storage 2 | 1 . . 1 . Processor . | . . . . . Hackware . | . . . . . Protection . | . . . . . Artifact . | . . . . . Weapon 4 | 2 . 2 . . Energy Gun 2 | 1 . 1 . . Energy Cannon . | . . . . . Ballistic Gun 2 | 1 . 1 . . Ballistic Cannon . | . . . . . Launcher . | . . . . . Special Weapon . | . . . . . Impact Weapon . | . . . . . Slashing Weapon . | . . . . . Piercing Weapon . | . . . . . Special Melee Weapon . | . . . . . Unidentified Prototypes . | . . . . . Parts Lost 4 | . . 4 . . Power 1 | . . 1 . . Propulsion 2 | . . 2 . . Utility . | . . . . . Weapon 1 | . . 1 . . Highest Loss Streak 3 | . . 3 . . To Critical Strikes . | . . . . . Average Slot Usage (%) 72 | . 85 67 71 71 Engine 13 | . 14 10 14 14 Wheel 19 | . 28 22 14 14 Storage 14 | . 14 14 14 14 Energy Gun 14 | . 14 14 14 14 Ballistic Gun 11 | . 14 5 14 14 Naked Turns . | . . . . . Heaviest Build 18 | 12 12 13 18 18 Greatest Support 26 | 20 20 26 16 16 Greatest Overweight (x) 1 | . . 1 1 1 Average Overweight (x) . | . . . . 1 Largest Inventory Capacity 10 | 8 8 8 10 10 Average Capacity 8 | 7 8 8 9 10 Most Carried 6 | 5 4 6 6 4 Average Carried 4 | 3 4 4 4 4 Final Capacity 10 | 8 8 8 10 10 Final Carried 5 | 4 4 5 4 4 Class Distribution -------------------- 100% | Mutant Dominant Class ---------------- Mutant | -10/Materials Mutant | -10/Mines Mutant | -10/Exiles Mutant | -9/Mines Resources | -11 -10 -10 -10 -9 ----------- Run | Scr Mat Min Exi Min Matter Collected 338 | 216 49 63 . 10 Remotely . | . . . . . Salvage Created 338 | . 49 289 . . Parts 17 | . 5 12 . . Haulers Intercepted . | . . . . . Recyclers Shooed 2 | . . 1 . 1 Parts Field Recycled . | . . . . . Retrieved Matter . | . . . . . Parts Self-Destructed . | . . . . . Prevented . | . . . . . Kills | -11 -10 -10 -10 -9 ------- Run | Scr Mat Min Exi Min Combat Hostiles Destroyed 8 | . 3 5 . . Guns 8 | . 3 5 . . Classes Destroyed 4 | . 1 3 . . Worker 2 | . . 2 . . Recycler 1 | . . 1 . . Swarmer 6 | . 3 3 . . Grunt 2 | . . 2 . . Best Kill Streak 5 | . 3 5 . . Combat Bots Only 3 | . 3 3 . . Max Kills in Single Turn 2 | . 2 1 . . Gunslinging 1 | . 1 . . . Exploded . | . . . . . Melee . | . . . . . Uniques/NPCs Destroyed . | . . . . . Combat | -11 -10 -10 -10 -9 -------- Run | Scr Mat Min Exi Min Damage Taken 655 | . 44 537 . 74 Core 251 | . . 203 . 48 Absorbed by Shields . | . . . . . Core Remaining (%) 100 | 100 . . . . Volleys Fired 48 | . 5 38 . 5 Largest 2 | . 2 2 . 2 Hottest 70 | . 70 70 . 70 Shots Fired 69 | . 10 49 . 10 Gun 69 | . 10 49 . 10 Cannon . | . . . . . Launcher . | . . . . . Special . | . . . . . Kinetic 21 | . 5 11 . 5 Thermal 48 | . 5 38 . 5 Explosive . | . . . . . Electromagnetic . | . . . . . Robot Hit Streak 11 | . 5 11 . 1 Robot Miss Streak 7 | . 4 4 . 7 Penetration Max . | . . . . . Secondary Targets 1 | . 1 . . . Max Gunslinging Chain 1 | . 1 . . . Shots Hit Robots 40 | . 5 33 . 2 Core Hits 18 | . 3 13 . 2 Critical Kills . | . . . . . Critical Parts Destroyed . | . . . . . Critical Strikes 3 | . 1 2 . . Burn 3 | . 1 2 . . Melee Attacks . | . . . . . Impact . | . . . . . Slashing . | . . . . . Piercing . | . . . . . Sneak Attacks . | . . . . . Combat Hostiles . | . . . . . Follow-up Attacks . | . . . . . Damage Inflicted 539 | . 64 428 . 47 Guns 539 | . 64 428 . 47 Cannons . | . . . . . Explosions . | . . . . . Melee . | . . . . . Ramming . | . . . . . Kinetic 149 | . 26 100 . 23 Thermal 390 | . 38 328 . 24 Explosive . | . . . . . Electromagnetic . | . . . . . Impact . | . . . . . Slashing . | . . . . . Piercing . | . . . . . Highest Corruption . | . . . . . Average Corruption . | . . . . . Corruption Purged . | . . . . . Corruption Blocked . | . . . . . Overload Shots . | . . . . . Overflow Damage . | . . . . . Projectiles . | . . . . . Explosions . | . . . . . Melee . | . . . . . Knockbacks . | . . . . . Impact . | . . . . . Kinetic . | . . . . . Secondary . | . . . . . Self-Inflicted Damage . | . . . . . Shots . | . . . . . Rammed . | . . . . . Targets Rammed . | . . . . . Kicked . | . . . . . Crushed . | . . . . . Highest Temperature 223 | . 36 223 . 70 Average Temperature 92 | . 16 112 . 40 Received Heat Transfer 264 | . . 264 . . Siege Activations . | . . . . . Robots Corrupted . | . . . . . Combat Hostiles . | . . . . . Parts Fried . | . . . . . Impact Corruptions . | . . . . . Robots Melted . | . . . . . Combat Hostiles . | . . . . . Parts Melted 1 | . . 1 . . Heat Transferred 1369 | . 185 1110 . 74 Parts Sabotaged . | . . . . . Parts Stolen . | . . . . . Parts Stripped . | . . . . . Power Chain Reactions . | . . . . . Missiles Intercepted . | . . . . . Alert | -11 -10 -10 -10 -9 ------- Run | Scr Mat Min Exi Min Peak Influence 153 | . 73 153 . . Initial 28 | . . 28 . . Average 46 | . 55 66 . . Maximum Alert Level . | . . . . . Low Security (%) 100 | 100 100 100 . 100 Level 1 . | . . . . . Level 2 . | . . . . . Level 3 . | . . . . . Level 4 . | . . . . . Level 5 . | . . . . . High Security . | . . . . . Max Security . | . . . . . Squads Dispatched 1 | . 1 . . . Investigation . | . . . . . Extermination . | . . . . . Reinforcement 1 | . 1 . . . Assault . | . . . . . Garrison . | . . . . . Intercept . | . . . . . Searches Triggered . | . . . . . Construction Impeded . | . . . . . Haulers Reinforced . | . . . . . Active Scanning Responses . | . . . . . Cargo Convoy Interrupts . | . . . . . Stealth | -11 -10 -10 -10 -9 --------- Run | Scr Mat Min Exi Min Distress Signals . | . . . . . Communications Jammed . | . . . . . Distress Signals . | . . . . . Times Spotted 11 | . 3 5 . 3 Peak Tracking Total 3 | . 3 3 . 3 Tactical Retreats . | . . . . . Traps | -11 -10 -10 -10 -9 ------- Run | Scr Mat Min Exi Min Traps Triggered . | . . . . . Indirectly . | . . . . . Trap Hack Attempts . | . . . . . Triggered . | . . . . . Disarmed . | . . . . . Reprogrammed . | . . . . . Reused . | . . . . . Traps Extracted . | . . . . . Installed . | . . . . . Triggered . | . . . . . Machines | -11 -10 -10 -10 -9 ---------- Run | Scr Mat Min Exi Min Machines Disabled . | . . . . . Max in Single Turn . | . . . . . Machines Sabotaged . | . . . . . Garrisons Compromised . | . . . . . Overloaded Fab Kills . | . . . . . Hacking | -11 -10 -10 -10 -9 --------- Run | Scr Mat Min Exi Min Machines Accessed 1 | . 1 . . . Terminals 1 | . 1 . . . Fabricators . | . . . . . Repair Stations . | . . . . . Recycling Units . | . . . . . Scanalyzers . | . . . . . Garrison Access . | . . . . . Total Hacks 1 | . 1 . . . Successful 1 | . 1 . . . Failed . | . . . . . Catastrophic . | . . . . . Database Lockouts . | . . . . . Manual . | . . . . . Terminals 1 | . 1 . . . Fabricators . | . . . . . Repair Stations . | . . . . . Recycling Units . | . . . . . Scanalyzers . | . . . . . Garrison Access . | . . . . . Terminal Hacks 1 | . 1 . . . Dispatch Records 1 | . 1 . . . Fabricator Hacks . | . . . . . Repair Station Hacks . | . . . . . Recycling Unit Hacks . | . . . . . Scanalyzer . | . . . . . Garrison Access Hacks . | . . . . . Unauthorized Hacks . | . . . . . Terminals . | . . . . . Fabricators . | . . . . . Repair Stations . | . . . . . Recycling Units . | . . . . . Scanalyzers . | . . . . . Garrison Access . | . . . . . Data Cores Recovered . | . . . . . Used . | . . . . . Hacking Detections . | . . . . . Full Trace Events . | . . . . . Feedback Events . | . . . . . Feedback Blocked . | . . . . . Robot Schematics Acquired . | . . . . . Robots Built . | . . . . . Authchips . | . . . . . Time . | . . . . . Total Robot Build Rating . | . . . . . Part Schematics Acquired . | . . . . . Parts Built . | . . . . . Authchips . | . . . . . Time . | . . . . . Total Part Build Rating . | . . . . . Parts Repaired . | . . . . . Time . | . . . . . Parts Recycled . | . . . . . Recycled Matter . | . . . . . Retrieved Matter . | . . . . . Retrieved Components . | . . . . . Parts Scanalyzed . | . . . . . Part Schematics Acquired . | . . . . . Parts Damaged . | . . . . . Bothacking | -11 -10 -10 -10 -9 ------------ Run | Scr Mat Min Exi Min Used RIF Installer . | . . . . . Robots Hacked . | . . . . . Non-combat . | . . . . . Combat . | . . . . . Robot Hacks Applied . | . . . . . Relay Couplers Released . | . . . . . Fabnet Peak Effective % . | . . . . . Robots Rewired . | . . . . . Allies Hacked . | . . . . . Hacks Repelled . | . . . . . Allies | -11 -10 -10 -10 -9 -------- Run | Scr Mat Min Exi Min Total Allies . | . . . . . Largest Group . | . . . . . Highest-Rated Group . | . . . . . Highest-Rated Ally . | . . . . . Total Orders . | . . . . . Ally Attacks . | . . . . . Total Damage . | . . . . . Kills . | . . . . . Allies Corrupted . | . . . . . Allies Melted . | . . . . . Intel | -11 -10 -10 -10 -9 ------- Run | Scr Mat Min Exi Min Robot Analysis Total . | . . . . . Derelict Logs Recovered . | . . . . . Drone Launches . | . . . . . Drone Recoveries . | . . . . . Exploration | -11 -10 -10 -10 -9 ------------- Run | Scr Mat Min Exi Min Turns Passed 825 | 60 156 216 328 65 Spaces Moved 713 | 59 176 137 296 45 Core 11 | 11 . . . . Treads . | . . . . . Legs . | . . . . . Wheels 702 | 48 176 137 296 45 Hover . | . . . . . Flight . | . . . . . Fastest Speed 50 | 50 80 80 100 115 Average Speed 95 | 74 80 88 109 115 Slowest Speed 115 | 80 80 100 115 115 Overloaded Moves . | . . . . . Propulsion Burnouts . | . . . . . Robots Hopped . | . . . . . Cave-ins Triggered . | . . . . . Exploration Rate (%) 31 | 3 31 40 63 21 Regions Visited 4 Branch Regions 3 Pre-discovered Areas . | . . . . . Known Exits Taken . | . . . . . Unknown Exits Taken 4 | 1 1 1 1 . Scrap Searched . | . . . . . Spaces Dug . | . . . . . Terrain Destroyed . | . . . . . Melee . | . . . . . Projectile . | . . . . . AOE . | . . . . . Terrain Rammed . | . . . . . Walls Destroyed . | . . . . . Machines Disabled . | . . . . . Actions | -11 -10 -10 -10 -9 --------- Run | Scr Mat Min Exi Min Total 785 | 74 180 182 299 50 Wait . | . . . . . Move 709 | 58 175 136 295 45 Hop . | . . . . . Pick Up 15 | 10 . 4 1 . Fast Attach . | . . . . . Attach 9 | 6 . 3 . . Detach . | . . . . . Swap 2 | . . 1 1 . Drop 2 | . . . 2 . Fire 48 | . 5 38 . 5 Melee . | . . . . . Ram . | . . . . . Kick . | . . . . . Crush . | . . . . . Escape Stasis . | . . . . . Rewire . | . . . . . Trap . | . . . . . Miscellaneous . | . . . . . Route ------- -11/Scrapyard -10/Materials -10/Mines (discovered 2 exits: [*Mat] / *Exi) -10/Exiles (discovered 2 exits: [*Min x2]) -9/Mines History --------- Turn | Location | Event 19 | -11/Scrapyard | Discovered new exit (range 15) 61 | -11/Scrapyard | Entered Materials 201 | -10/Materials | Discovered new exit (range 10) 217 | -10/Materials | Entered Mines 236 | -10/Mines | A weapon hastily lodged in a ceiling crevice suddenly fell to the ground 285 | -10/Mines | Core integrity fell below 50% 313 | -10/Mines | Lost 3 parts (1p1n1w) 335 | -10/Mines | Build established: Mutant 352 | -10/Mines | Discovered new exit (range 10) 416 | -10/Mines | Core integrity fell below 20% 428 | -10/Mines | Deemed a non-threat by the Exiles lab entrance 428 | -10/Mines | Discovered new exit (range 5) 433 | -10/Mines | Entered Exiles 450 | -10/Exiles | Discovered new exit (range 15) 469 | -10/Exiles | Met 8R-AWN 492 | -10/Exiles | Met EX-HEX 557 | -10/Exiles | Met EX-DEC 586 | -10/Exiles | Visited The Gauntlet 699 | -10/Exiles | Discovered new exit (range 14) 761 | -10/Exiles | Entered Mines 775 | -9/Mines | Met a Derelict bent on vengeance 805 | -9/Mines | Assembled infested the area 810 | -9/Mines | Assisted by a Guerilla fighting off Assembled 826 | -9/Mines | Destroyed by D-53 Grenadier with Mini Grenade Launcher Last Messages --------------- been tracking a group of Assembled to figure out where they're coming from, and they're closing on this area, come on!" 00813_ K-01 Serf collects debris. 00813_ EK-6UH(h): "I'll hold them off! Go on ahead or try to find another way!" 00813_ HV Slug penetrates U-05 Engineer. 00813_ U-05 Engineer suffers critical hit (Destroy). 00816_ The unstable cave ceiling collapses. 00816_ K-01 Serf collects debris. 00817_ U-05 Engineer builds a Wall. 00819_ HV Slug penetrates S-10 Pest. 00819_ S-10 Pest suffers critical hit (Destroy). 00819_ S-10 Pest knocked back. 00821_ S-10 Pest suffers critical hit (Destroy). 00821_ S-10 Pest destroyed. 00822_ U-05 Engineer lays Concrete. 00823_ HV Slug penetrates D-53 Grenadier. 00823_ D-53 Grenadier suffers critical hit (Destroy). 00823_ U-05 Engineer lays Concrete. 00824_ U-05 Engineer destroyed. 00825_ HV Slug penetrates Wall. Map ----- +----------------------------------------------------+ | ?????????????????????????????????????????????????? | | ?????????????????????????????????????????????????? | | ?????????????????????????????????????????????????? | | ?????????????????????????????????????????????????? | | ?????????????????????????????????????????????????? | | ?????????????????????????????????????????????????? | | ??????????????????????????????? ?????????????????? | | ?????????????????????????????? ????????????????? | | ?????????????????????????????? %????????????????? | | ?????????????????????????????? ????????????????? | | ?????????????????????????????? ????????????????? | | ??????????????????? ?????????? ????????????????? | | ??????????????????? ???###???? #????????????????? | | ??????? ??????????? ??## #??? % ????????????????? | | ????? ??????????? ??# ### #????????????????? | | ??# ?????????? ??# ###??????????????? | | ?# ?????????? ??? d #??????????????? | | ?? ?????????? ???? dg= #??????????????? | | ??? ?????????# #????# %| #??????????????? | | ???# ?????????# #????# ! #???????????????? | | ???# ?????????# #????# #????????????????? | | ???# ?????????# #????# #????????????????? | | ???# #????????# #???## #?????????????????? | | ???# #????##### #??## #?????????????????? | | ???# ##??## ## #### h ##?????????????????? | | ????# #??# @ ###??????????????????? | | ?????# #??# """ r #????????????????????? | | ???????# #### """ ##### ##????????????????????? | | #####??# """ #???#####?????????????????????? | | #??# #### #?????????????????????????????? | | #??# #??## ##?????????????????????????????? | | #### #???#####??????????????????????????????? | | #??????????????????????????????????????? | | #??????????????????????????????????????? | | #######??????????????????????????????????????? | | #????????????????????????????????????????????? | | #????????????????????????????????????????????? | | #????????????????????????????????????????????? | | #????????????????????????????????????????????? | | #????????????????????????????????????????????? | | #####????????????????????????????????????????????? | | ?????????????????????????????????????????????????? | | ?????????????????????????????????????????????????? | | | | | | | | | | | | | | | +----------------------------------------------------+ Best States ------------- Heat Dissipation 25 Energy Generation 10 Energy Capacity 250 Matter Stores 300 Matter Capacity 300 Sight Range 16 Terrain Scan Density 10 Evasion (%) 50 Item Schematics ----------------- None Robot Schematics ------------------ None Fabricated ------------ Nothing Alien Tech Used ----------------- None Achievements -------------- None Challenges ------------ None Game ------ Seed ProcessingDamperShield Manual? 0 Play Time 00:07:08 Cumulative 19.7 hours Start 2023.02.13 @ 15:27:59 End 2023.02.13 @ 15:34:12 Sessions 1 Manual Loads 0 Difficulty Rogue Special Mode None Game No. 47 Rogue 18 Adventurer 29 Explorer 0 Win Type - Total 0 Types 0/0/0/0/0/0/0/0/0 Lore% 21 Gallery% 26 Achievement% 18 Wizard Run 0 Options --------- ASCII 0 Keyboard 0 Movement Mouse Keybinds 0 Fullscreen 1 Font 12/Terminus Map View 83x54 Tactical HUD 1 Map Filters NONE Filters NONE Steam 0 RUN: d2a673fd-5008-4830-ba49-afb27585848b